bitfinex/quotes_SOLUSD_20260220
["timestamp","ask_amount","ask_price","bid_price","bid_amount"]
[1771620876639,11.8027524,84.726,84.701,1.88905527]
[1771620876850,11.90231462,84.73,84.701,1.88905527]
[1771620877828,11.90231462,84.73,84.684,41.33012139]
[1771620877829,0.1,84.74,84.711,1.9538004]
[1771620878231,1.96269256,84.739,84.701,1.9538004]
[1771620878848,1.96269256,84.738,84.702,11.80609666]
[1771620879052,1.96269256,84.738,84.703,1.9538004]
[1771620880030,1.96269256,84.738,84.711,1.9538004]
[1771620880355,1.96269256,84.729,84.703,1.9538004]
[1771620880935,1.96269256,84.729,84.701,11.80618621]
[1771620881127,1.96269256,84.729,84.697,1.9538004]
[1771620881327,1.96269256,84.727,84.697,13.76053821]
[1771620881733,1.96269256,84.727,84.698,1.9538004]
[1771620882047,1.96269256,84.73,84.701,1.9538004]
[1771620882351,11.80193832,84.732,84.693,11.80727638]
[1771620882352,11.80193832,84.732,84.711,1.9538004]
[1771620883632,13.76405207,84.736,84.711,1.9538004]
[1771620884252,11.80135951,84.736,84.711,1.9538004]
[1771620884546,1.96269256,84.735,84.711,1.9538004]
[1771620884753,1.96269256,84.735,84.704,1.9538004]
[1771620885151,1.96269256,84.729,84.704,1.9538004]
[1771620885351,1.96269256,84.729,84.694,1.9538004]
[1771620885553,11.80247379,84.728,84.695,11.80707243]
[1771620885736,1.96269256,84.727,84.696,1.9538004]
[1771620886657,1.96269256,84.719,84.692,1.9538004]
[1771620888054,1.96269256,84.717,84.691,11.80757863]
[1771620888270,11.80386694,84.718,84.684,11.80855745]
[1771620888271,1.96269256,84.709,84.684,11.80855745]
[1771620888647,1.96269256,84.709,84.685,1.9538004]
[1771620888959,104.4,84.739,84.701,1.9538004]
[1771620888960,1.96269256,84.734,84.701,1.9538004]
[1771620889342,1.96269256,84.729,84.701,1.9538004]
[1771620890255,1.96269256,84.737,84.703,1.9538004]
[1771620890462,1.96269256,84.719,84.689,1.9538004]
[1771620891139,1.96269256,84.719,84.686,11.80827279]
[1771620892158,1.96269256,84.719,84.684,11.80860611]
[1771620892356,4.28456242,84.71,84.684,11.80860611]
[1771620892557,1.96269256,84.699,84.662,1.9538004]
[1771620892762,1.96269256,84.699,84.664,1.9538004]
[1771620895660,1.96269256,84.689,84.651,1.9538004]
[1771620895839,1.96269256,84.704,84.671,1.9538004]
[1771620896040,1.96269256,84.704,84.68,4.28456242]
[1771620896254,1.96269256,84.704,84.681,1.9538004]
[1771620897162,1.96269256,84.704,84.683,1.9538004]
[1771620898564,1.96269256,84.704,84.684,11.80860611]
[1771620898765,1.96269256,84.689,84.655,1.9538004]
[1771620900173,1.96269256,84.707,84.66,4.28456242]
[1771620900374,1.96269256,84.72,84.67,4.28456242]
[1771620900670,1.96269256,84.707,84.673,1.9538004]
[1771620900880,1.96269256,84.699,84.673,1.9538004]
[1771620901050,1.96269256,84.699,84.672,11.81027966]
[1771620901381,1.96269256,84.689,84.665,1.9538004]
[1771620901541,1.96269256,84.696,84.665,1.9538004]
[1771620902551,13.76976499,84.695,84.667,1.9538004]
[1771620902753,1.96269256,84.694,84.667,1.9538004]
[1771620904667,1.96269256,84.689,84.652,1.9538004]
[1771620905166,1.96269256,84.689,84.657,1.9538004]
[1771620906248,1.96269256,84.689,84.661,1.9538004]
[1771620906856,1.94371902,84.719,84.681,1.90456557]
[1771620908067,4.28456242,84.72,84.662,11.81167465]
[1771620908068,1.8870972,84.689,84.662,11.81167465]
[1771620908451,1.8870972,84.706,84.671,1.90773466]
[1771620909370,1.8870972,84.704,84.673,1.90773466]
[1771620910165,1.8870972,84.712,84.681,1.90773466]
[1771620910372,1.8870972,84.71,84.681,1.90773466]
[1771620910576,1.8870972,84.732,84.701,1.90773466]
[1771620910754,1.8870972,84.745,84.711,1.90773466]
[1771620910956,4.38456242,84.75,84.731,1.90773466]
[1771620910957,0.1,84.75,84.731,1.90773466]
[1771620911377,0.1,84.76,84.733,1.90773466]
[1771620911773,0.1,84.76,84.74,4.28456242]
[1771620911977,0.1,84.76,84.741,1.90773466]
[1771620913680,0.1,84.76,84.742,11.80052394]
[1771620914673,1.8870972,84.773,84.743,1.90773466]
[1771620914879,1.8870972,84.78,84.751,1.90773466]
[1771620915680,1.8870972,84.78,84.751,1.90773466]
[1771620916180,1.8870972,84.778,84.752,11.79913158]
[1771620916564,1.8870972,84.778,84.739,1.90773466]
[1771620916760,1.8870972,84.778,84.722,41.31158376]
[1771620916761,1.8870972,84.809,84.771,1.90773466]
[1771620916966,1.8870972,84.799,84.771,1.90773466]
[1771620917163,1.8870972,84.799,84.725,3.69383402]
[1771620917164,1.8870972,84.789,84.751,1.90773466]
[1771620917365,1.8870972,84.769,84.731,1.90773466]
[1771620917976,1.8870972,84.759,84.731,1.90773466]
[1771620918196,1.8870972,84.759,84.732,11.80191663]
[1771620919588,1.8870972,84.759,84.726,1.90773466]
[1771620920289,1.8870972,84.759,84.725,11.8028917]
[1771620920585,1.8870972,84.749,84.725,11.8028917]
[1771620921488,1.8870972,84.749,84.72,23.27273792]
[1771620922378,1.8870972,84.749,84.72,25.18047258]
[1771620922574,1.8870972,84.749,84.721,1.90773466]
[1771620924485,1.8870972,84.749,84.723,1.90773466]
[1771620930193,11.79815712,84.759,84.731,1.90773466]
[1771620930495,1.8870972,84.758,84.731,1.90773466]
[1771620932799,1.8870972,84.756,84.731,1.90773466]
[1771620932999,11.7979304,84.761,84.733,1.90773466]
[1771620933379,1.8870972,84.76,84.733,1.90773466]
[1771620934800,1.8870972,84.76,84.734,11.80163806]
[1771620935096,1.8870972,84.76,84.735,1.90773466]
[1771620936904,1.8870972,84.76,84.736,11.80135951]
[1771620937705,2.04154472,84.758,84.72,4.28217791]
[1771620937886,2.04154472,84.749,84.711,1.96072738]
[1771620938203,2.04154472,84.749,84.721,1.96072738]
[1771620939719,2.04154472,84.749,84.723,1.96072738]
[1771620940012,2.04154472,84.749,84.73,6.2441466]
[1771620941013,2.04154472,84.749,84.724,1.96072738]
[1771620941603,13.84113406,84.749,84.726,1.96072738]
[1771620941796,2.04154472,84.749,84.726,1.96072738]
[1771620942907,2.04154472,84.747,84.72,4.28341922]
[1771620943211,2.04154472,84.729,84.691,11.80763009]
[1771620943391,2.04154472,84.719,84.691,11.80763009]
[1771620944811,2.04154472,84.719,84.692,1.96072738]
[1771620946216,2.04154472,84.719,84.691,11.80763009]
[1771620947398,2.04154472,84.719,84.688,31.48084829]
[1771620947595,2.04154472,84.719,84.689,1.96072738]
[1771620948697,2.04154472,84.719,84.69,13.76849689]
[1771620948899,2.04154472,84.719,84.691,1.96072738]
[1771620949499,2.04154472,84.709,84.685,11.80837699]
[1771620950197,2.04154472,84.709,84.686,1.96072738]
[1771620950523,11.80386694,84.718,84.691,1.96072738]
[1771620950704,13.84541166,84.718,84.693,1.96072738]
[1771620950900,2.04154472,84.717,84.693,1.96072738]
[1771620954707,4.28341922,84.72,84.693,1.96072738]
[1771620954708,2.04154472,84.715,84.693,1.96072738]
[1771620956806,2.04154472,84.715,84.694,11.80721184]
[1771620959525,2.04154472,84.713,84.693,1.96072738]
[1771620961027,2.04154472,84.709,84.682,11.80884551]
[1771620961508,2.04154472,84.709,84.682,13.76957289]
[1771620961710,2.04154472,84.709,84.682,11.80884551]
[1771620961909,2.04154472,84.709,84.683,1.96072738]
[1771620962510,2.04154472,84.709,84.652,62.2]
[1771620962511,2.04154472,84.707,84.677,11.80958229]
[1771620962832,2.04154472,84.699,84.677,11.80958229]
[1771620963837,2.04154472,84.699,84.677,1.96072738]
[1771620964129,2.04154472,84.706,84.677,1.96072738]
[1771620965425,2.04154472,84.723,84.681,1.96072738]
[1771620965627,2.04154472,84.719,84.691,1.96072738]
[1771620965833,2.04154472,84.719,84.693,1.96072738]
[1771620966533,2.04154472,84.727,84.693,1.96072738]
[1771620967107,11.80257984,84.728,84.693,1.96072738]
[1771620967108,2.00081345,84.719,84.693,1.96072738]
[1771620968239,2.00081345,84.719,84.695,2.16318933]
[1771620970639,2.00081345,84.719,84.697,2.16318933]
[1771620971317,11.80342829,84.722,84.697,2.16318933]
[1771620971529,18.059398,84.73,84.697,2.16318933]
[1771620972019,1.97365567,84.729,84.697,2.16318933]
[1771620973343,1.97365567,84.727,84.698,11.80665423]
[1771620973638,1.97365567,84.719,84.698,11.80665423]
[1771620974535,1.97365567,84.719,84.691,11.80762389]
[1771620976041,1.97365567,84.709,84.681,11.80902445]
[1771620976422,1.97365567,84.719,84.682,2.16318933]
[1771620976721,1.97365567,84.719,84.691,2.16318933]
[1771620978142,1.97365567,84.717,84.692,11.80749067]
[1771620978322,1.97365567,84.717,84.693,2.16318933]
[1771620981643,13.77780128,84.716,84.693,2.16318933]
[1771620982041,1.97365567,84.725,84.695,2.16318933]
[1771620982626,4.28341922,84.72,84.695,2.16318933]
[1771620982827,1.97365567,84.719,84.695,2.16318933]
[1771620983745,1.97365567,84.719,84.696,11.80693303]
[1771620983926,1.97365567,84.719,84.697,2.16318933]
[1771620987751,1.97365567,84.719,84.698,13.96984356]
[1771620988147,1.97365567,84.718,84.694,11.80708074]
[1771620989748,1.97365567,84.718,84.694,2.16318933]
[1771620991842,1.97365567,84.718,84.695,11.80707243]
[1771620994252,1.97365567,84.718,84.696,2.16318933]
[1771620999147,1.97365567,84.718,84.698,1.96877205]
[1771621000170,1.97365567,84.718,84.693,1.96877205]
[1771621000536,2.10598544,84.716,84.682,1.96877205]
[1771621002571,2.10598544,84.723,84.691,1.96877205]
[1771621004164,2.10598544,84.721,84.691,1.96877205]
[1771621005148,2.10598544,84.721,84.693,1.96877205]
[1771621005463,2.10598544,84.699,84.678,1.96877205]
[1771621005651,2.10598544,84.699,84.672,1.96877205]
[1771621007165,2.10598544,84.699,84.674,1.96877205]
[1771621008665,13.91168069,84.705,84.676,1.96877205]
[1771621009385,2.10598544,84.704,84.676,1.96877205]
[1771621010159,13.91180334,84.704,84.676,1.96877205]
[1771621010670,4.28732778,84.71,84.682,1.96877205]
[1771621010866,2.10598544,84.709,84.682,1.96877205]
[1771621012781,2.10598544,84.709,84.683,11.80874555]
[1771621012972,2.10598544,84.709,84.684,1.96877205]
[1771621013553,2.10598544,84.724,84.691,1.96877205]
[1771621014568,13.90913898,84.724,84.691,1.96877205]
[1771621014772,2.10598544,84.739,84.701,1.96877205]
[1771621014962,2.10598544,84.738,84.703,1.96877205]
[1771621015474,2.10598544,84.729,84.702,11.80609666]
[1771621016874,2.10598544,84.729,84.702,1.96877205]
[1771621019675,2.10598544,84.729,84.691,41.32638054]
[1771621019878,2.10598544,84.719,84.692,1.96877205]
[1771621020189,2.10598544,84.719,84.687,1.96877205]
[1771621020684,2.10598544,84.719,84.689,1.96877205]
[1771621022287,2.10598544,84.717,84.691,1.96877205]
[1771621022662,62.69442963,84.745,84.681,11.80902445]
[1771621022663,2.10598544,84.709,84.681,11.80902445]
[1771621022891,2.10598544,84.709,84.682,1.96877205]
[1771621023562,2.10598544,84.709,84.677,11.80949263]
[1771621024363,4.28732778,84.7,84.667,1.96877205]
[1771621024589,2.10598544,84.699,84.667,1.96877205]
[1771621025469,11.80665423,84.698,84.668,11.81083762]
[1771621025670,2.10598544,84.689,84.651,1.96877205]
[1771621026366,4.28732778,84.71,84.671,1.96877205]
[1771621026565,2.10598544,84.713,84.681,1.96877205]
[1771621027492,2.10598544,84.713,84.683,1.92301859]
[1771621027673,2.10598544,84.713,84.691,1.92301859]
[1771621028188,11.80399668,84.718,84.691,1.92301859]
[1771621028964,2.02406738,84.729,84.691,1.92301859]
[1771621029786,2.02406738,84.719,84.684,1.92301859]
[1771621030870,2.02406738,84.709,84.684,1.92301859]
[1771621031191,2.02406738,84.709,84.675,1.92301859]
[1771621035186,104.4,84.744,84.651,62.2]
[1771621035187,2.02406738,84.699,84.676,11.80972176]
[1771621037696,2.02406738,84.689,84.65,4.28732778]
[1771621037989,2.02406738,84.689,84.647,1.92301859]
[1771621038179,2.02406738,84.679,84.647,1.92301859]
[1771621040594,2.02406738,84.679,84.649,1.92301859]
[1771621042599,2.02406738,84.679,84.65,11.81334908]
[1771621042908,2.02406738,84.679,84.651,1.92301859]
[1771621046679,2.02406738,84.679,84.648,29.5340705]
[1771621046680,2.02406738,84.679,84.652,13.73608857]
[1771621046881,2.02406738,84.677,84.648,11.81355978]
[1771621047981,2.02406738,84.659,84.64,11.8146698]
[1771621048803,2.02406738,84.659,84.639,1.92301859]
[1771621049096,2.02406738,84.659,84.631,11.81600122]
[1771621049786,2.02406738,84.659,84.632,1.92301859]
[1771621051705,2.02406738,84.659,84.634,1.92301859]
[1771621053087,13.83537061,84.665,84.634,1.92301859]
[1771621053288,2.02406738,84.664,84.634,1.92301859]
[1771621054311,2.02406738,84.677,84.641,1.92301859]
[1771621054603,2.02406738,84.681,84.651,1.92301859]
[1771621054785,2.02406738,84.679,84.651,1.92301859]
[1771621055601,4.28732778,84.69,84.651,1.92301859]
[1771621055805,2.02406738,84.695,84.661,1.92301859]
[1771621056604,2.02406738,84.704,84.671,1.92301859]
[1771621058896,4.28732778,84.7,84.672,11.81027966]
[1771621059096,4.28732778,84.7,84.673,1.99194425]
[1771621060315,1.95153589,84.709,84.681,1.99194425]
[1771621061210,1.95153589,84.699,84.663,1.99194425]
[1771621064013,1.95153589,84.697,84.665,1.99194425]
[1771621065118,1.95153589,84.703,84.671,1.99194425]
[1771621065291,1.95153589,84.71,84.681,1.99194425]
[1771621066604,1.95153589,84.708,84.683,1.99194425]
[1771621067210,1.95153589,84.699,84.676,1.99194425]
[1771621067400,1.95153589,84.699,84.672,1.99194425]
[1771621069022,1.95153589,84.697,84.673,11.81014018]
[1771621069817,1.95153589,84.703,84.674,1.99194425]
[1771621070319,1.95153589,84.699,84.674,1.99194425]
[1771621071199,1.95153589,84.699,84.676,1.99194425]
[1771621072819,1.95153589,84.698,84.675,11.80986123]
[1771621073330,1.95153589,84.696,84.671,13.8023634]
[1771621073495,11.80679362,84.697,84.417,105.23069795]
[1771621073496,1.95153589,84.689,84.651,1.99194425]
[1771621073701,1.95153589,84.679,84.654,11.81279088]
[1771621075206,1.95153589,84.679,84.648,11.81361587]
[1771621076413,1.95153589,84.679,84.645,1.99194425]
[1771621076414,1.95153589,84.677,84.646,11.81390733]
[1771621076620,4.28932802,84.67,84.646,11.81390733]
[1771621076824,1.95153589,84.669,84.646,11.81390733]
[1771621080346,1.95153589,84.669,84.64,1.99194425]
[1771621082228,1.95153589,84.669,84.642,1.99194425]
[1771621082626,11.80790893,84.689,84.651,1.99194425]
[1771621083923,4.28932802,84.68,84.651,1.99194425]
[1771621084522,1.95153589,84.678,84.652,11.81306998]
[1771621085244,1.95153589,84.678,84.637,1.99194425]
[1771621085542,1.95153589,84.669,84.639,1.99194425]
[1771621085739,3.69383402,84.7,84.638,11.81502398]
[1771621085740,13.76030386,84.683,84.651,1.99194425]
[1771621085924,1.95153589,84.682,84.651,1.99194425]
[1771621088939,1.99586322,84.679,84.653,1.98818849]
[1771621089237,1.99586322,84.679,84.648,1.98818849]
[1771621090044,11.80834063,84.686,84.651,1.98818849]
[1771621090425,11.80834063,84.686,84.661,1.98818849]
[1771621090426,1.99586322,84.686,84.661,1.98818849]
[1771621090743,1.99586322,84.702,84.671,1.98818849]
[1771621091128,1.99586322,84.7,84.673,1.98818849]
[1771621091436,1.99586322,84.699,84.673,1.98818849]
[1771621093744,1.99586322,84.697,84.673,1.98818849]
[1771621097342,1.99586322,84.679,84.647,1.98818849]
[1771621097544,1.99586322,84.691,84.661,1.98818849]
[1771621097745,11.80693303,84.696,84.661,1.98818849]
[1771621097952,1.99586322,84.699,84.661,1.98818849]
[1771621099550,1.99586322,84.697,84.663,1.98818849]
[1771621100339,1.99586322,84.697,84.671,1.98818849]
[1771621100531,1.99586322,84.702,84.671,1.98818849]
[1771621100935,1.99586322,84.699,84.671,1.98818849]
[1771621101347,1.99586322,84.699,84.673,1.98818849]
[1771621101547,4.28932802,84.69,84.667,1.98818849]
[1771621101856,1.99586322,84.689,84.661,1.98818849]
[1771621104058,1.99586322,84.689,84.663,1.98818849]
[1771621104853,1.99586322,84.688,84.663,1.98818849]
[1771621107151,4.28932802,84.68,84.649,1.98818849]
[1771621107353,1.99586322,84.669,84.631,1.98818849]
[1771621108254,1.99586322,84.669,84.641,1.98818849]
[1771621108444,1.99586322,84.678,84.643,1.98818849]
[1771621108641,1.99586322,84.668,84.61,0.2]
[1771621108858,165.33024714,84.679,84.61,0.2]
[1771621108859,1.99586322,84.629,84.61,0.2]
[1771621109039,4.28932802,84.64,84.61,0.2]
[1771621109240,1.99586322,84.649,84.61,4.48932802]
[1771621109659,1.99586322,84.659,84.62,4.28932802]
[1771621110660,1.99586322,84.657,84.621,11.81739757]
[1771621110862,1.99586322,84.657,84.622,1.98818849]
[1771621111752,1.99586322,84.649,84.622,1.98818849]
[1771621113160,1.99586322,84.649,84.611,29.54698561]
[1771621113665,1.99586322,84.639,84.61,0.2]
[1771621114753,1.99586322,84.639,84.61,4.48932802]
[1771621115060,1.99586322,84.639,84.612,1.83967333]
[1771621117365,1.99586322,84.639,84.614,1.84985931]
[1771621118359,4.28932802,84.65,84.614,1.84985931]
[1771621118360,1.93708148,84.648,84.614,1.84985931]
[1771621118565,1.93708148,84.648,84.621,1.85317461]
[1771621121070,1.93708148,84.648,84.622,11.81725792]
[1771621123266,1.93708148,84.646,84.612,1.86922598]
[1771621123471,1.93708148,84.646,84.611,11.81879424]
[1771621123649,1.93708148,84.639,84.611,11.81879424]
[1771621126067,1.93708148,84.639,84.611,13.69417776]
[1771621126267,1.93708148,84.637,84.611,13.69417776]
[1771621127074,1.93708148,84.637,84.612,1.88140559]
[1771621128352,1.93708148,84.635,84.611,11.81879424]
[1771621129978,1.93708148,84.635,84.612,1.89020611]
[1771621130774,104.4,84.657,84.621,1.89020611]
[1771621130976,1.93708148,84.668,84.641,1.89020611]
[1771621132260,1.93708148,84.668,84.643,1.89589774]
[1771621134281,1.93708148,84.666,84.642,11.81446563]
[1771621135160,1.93708148,84.666,84.643,1.90414611]
[1771621136466,1.93708148,84.666,84.644,11.81418647]
[1771621138292,1.93708148,84.666,84.643,1.90414611]
[1771621138589,1.93708148,84.664,84.644,11.81418647]
[1771621138971,1.93708148,84.664,84.64,11.81464315]
[1771621139683,1.93708148,84.664,84.632,1.91470238]
[1771621140185,1.93708148,84.659,84.632,1.91470238]
[1771621140379,1.93708148,84.681,84.64,4.29532887]
[1771621140570,1.93708148,84.679,84.641,1.917267]
[1771621140884,1.93708148,84.669,84.641,1.917267]
[1771621141085,1.93708148,84.646,84.61,1e-08]
[1771621141296,1.93708148,84.619,84.581,11.8229333]
[1771621141478,1.93708148,84.639,84.591,2.06033927]
[1771621141670,1.93708148,84.629,84.592,2.06033927]
[1771621142269,1.93708148,84.619,84.59,0.2]
[1771621142464,1.93708148,84.609,84.59,0.2]
[1771621143986,1.93708148,84.617,84.59,2.26033927]
[1771621144292,1.93708148,84.617,84.59,6.55566814]
[1771621144481,1.93708148,84.615,84.59,2.26033927]
[1771621144799,1.93708148,84.62,84.592,2.06033927]
[1771621145083,1.93708148,84.62,84.59,4.49532887]
[1771621145084,1.93708148,84.619,84.59,0.2]
[1771621145485,1.93708148,84.609,84.59,0.2]
[1771621146685,101.57271381,84.639,84.58,0.2]
[1771621146686,1.93708148,84.599,84.58,0.2]
[1771621148686,1.96026186,84.598,84.58,0.2]
[1771621149796,1.96026186,84.603,84.58,0.2]
[1771621150474,1.96026186,84.599,84.58,0.2]
[1771621150669,1.96026186,84.597,84.58,0.2]
[1771621151594,29.54399157,84.62,84.581,2.05201209]
[1771621151789,4.29532887,84.62,84.591,2.05201209]
[1771621152874,11.81767688,84.619,84.591,13.87354938]
[1771621153068,11.81767688,84.619,84.581,2.05201209]
[1771621153286,4.29532887,84.61,84.581,2.05201209]
[1771621153690,1.96026186,84.609,84.58,0.2]
[1771621153887,1.96026186,84.609,84.58,2.25201209]
[1771621154386,1.96026186,84.609,84.581,2.05201209]
[1771621154768,1.96026186,84.609,84.57,0.2]
[1771621154769,1.96026186,84.599,84.57,0.2]
[1771621154972,11.81999004,84.603,84.571,2.05201209]
[1771621155187,1.96026186,84.606,84.581,2.05201209]
[1771621155390,11.81933068,84.608,84.581,2.05201209]
[1771621155770,13.77894437,84.612,84.581,2.05201209]
[1771621155971,6.25559073,84.62,84.591,2.05201209]
[1771621156201,1.96026186,84.619,84.591,2.05201209]
[1771621156781,4.29532887,84.68,84.591,2.05201209]
[1771621156782,1.96026186,84.636,84.611,2.05201209]
[1771621156989,1.96026186,84.636,84.62,4.29532887]
[1771621157193,1.96026186,84.642,84.61,4.29532887]
[1771621157380,41.35019633,84.643,84.6,4.29532887]
[1771621157381,1.96026186,84.639,84.6,4.29532887]
[1771621157700,1.96026186,84.639,84.6,6.34734096]
[1771621157879,1.96026186,84.639,84.601,2.05201209]
[1771621158084,11.81381222,84.647,84.621,2.05201209]
[1771621158474,4.29532887,84.66,84.63,4.29532887]
[1771621158802,4.29532887,84.65,84.61,4.29532887]
[1771621158985,4.29532887,84.65,84.61,6.34734096]
[1771621159186,4.29532887,84.64,84.611,11.81879424]
[1771621160197,1.96026186,84.639,84.611,11.81879424]
[1771621160402,1.96026186,84.629,84.592,2.05201209]
[1771621160594,1.96026186,84.637,84.611,2.05201209]
[1771621161399,1.96026186,84.635,84.602,2.05201209]
[1771621161789,1.96026186,84.629,84.597,11.82072087]
[1771621163195,41.35356113,84.636,84.591,0.7109]
[1771621163196,1.96026186,84.635,84.61,4.29532887]
[1771621163882,1.96026186,84.635,84.601,2.05201209]
[1771621164500,1.96026186,84.635,84.61,4.29532887]
[1771621165106,1.96026186,84.635,84.603,2.05201209]
[1771621165402,11.81436459,84.643,84.61,4.29532887]
[1771621165604,3.69383402,84.67,84.604,41.36920239]
[1771621165605,6.17058336,84.694,84.644,5.64518502]
[1771621165799,6.17058336,84.694,84.67,4.29532887]
[1771621165800,1.96026186,84.693,84.67,4.29532887]
[1771621166104,1.96026186,84.693,84.68,4.29532887]
[1771621166282,6.17058336,84.694,84.68,4.29532887]
[1771621166802,4.29532887,84.72,84.68,4.29532887]
[1771621166803,1.96026186,84.712,84.68,4.29532887]
[1771621166986,1.96026186,84.712,84.69,4.29532887]
[1771621167706,1.96026186,84.712,84.691,11.80763009]
[1771621167882,1.96026186,84.712,84.69,11.48099809]
[1771621168079,1.96026186,84.711,84.69,11.48099809]
[1771621168279,1.96026186,84.711,84.69,23.28872999]
[1771621168515,1.96026186,84.711,84.69,11.48099809]
[1771621169318,1.96026186,84.709,84.663,29.52861813]
[1771621169609,1.96026186,84.709,84.68,11.48099809]
[1771621169838,1.96026186,84.707,84.69,11.48099809]
[1771621170200,1.96026186,84.707,84.68,11.48099809]
[1771621170431,1.96026186,84.707,84.663,31.28019454]
[1771621170432,1.96026186,84.707,84.67,11.48099809]
[1771621170723,1.96026186,84.728,84.688,1.75157641]
[1771621170902,1.96026186,84.728,84.69,11.48099809]
[1771621171726,1.96026186,84.726,84.691,11.80763009]
[1771621171927,1.96026186,84.726,84.69,11.48099809]
[1771621172812,1.96026186,84.709,84.67,11.48099809]
[1771621173131,1.96026186,84.709,84.681,1.75960607]
[1771621173314,1.96026186,84.709,84.69,11.48099809]
[1771621173822,1.96026186,84.718,84.691,11.80763009]
[1771621174322,1.96026186,84.717,84.69,11.48099809]
[1771621174707,1.96026186,84.717,84.691,11.80763009]
[1771621174908,1.96026186,84.717,84.678,11.80944283]
[1771621175109,1.96026186,84.717,84.69,11.48099809]
[1771621175303,1.96026186,84.717,84.621,1.18173975]
[1771621175304,1.96026186,84.717,84.665,11.81122859]
[1771621175519,1.96026186,84.709,84.67,11.48099809]
[1771621175721,1.96026186,84.707,84.67,11.48099809]
[1771621176125,1.96026186,84.699,84.66,11.48099809]
[1771621176302,1.96026186,84.689,84.65,11.48099809]
[1771621176828,88.53945317,84.708,84.64,11.48099809]
[1771621176829,1.96026186,84.679,84.64,11.48099809]
[1771621177027,1.96026186,84.679,84.65,11.48099809]
[1771621177229,2.11509133,84.687,84.67,11.48099809]
[1771621177424,2.11509133,84.699,84.67,11.48099809]
[1771621177732,2.11509133,84.697,84.665,1.77243502]
[1771621177931,2.11509133,84.697,84.67,11.48099809]
[1771621179537,2.11509133,84.679,84.64,11.48099809]
[1771621179830,2.11509133,84.677,84.641,11.81460521]
[1771621180529,2.11509133,84.677,84.64,11.48099809]
[1771621180710,2.11509133,84.669,84.64,11.48099809]
[1771621181048,2.11509133,84.659,84.624,11.81696228]
[1771621181215,2.11509133,84.659,84.631,1.78218848]
[1771621181412,2.11509133,84.659,84.63,11.48099809]
[1771621181708,2.11509133,84.659,84.64,11.48099809]
[1771621182224,2.11509133,84.659,84.631,11.81600122]
[1771621182409,2.11509133,84.659,84.62,11.48099809]
[1771621182607,2.11509133,84.657,84.63,11.48099809]
[1771621183631,11.81251181,84.656,84.63,11.48099809]
[1771621183810,11.81000844,84.674,84.641,1.78691642]
[1771621184011,11.81000844,84.674,84.64,11.48099809]
[1771621184012,2.11509133,84.673,84.64,11.48099809]
[1771621184531,2.11509133,84.669,84.632,1.78691642]
[1771621185119,2.11509133,84.669,84.64,11.48099809]
[1771621185315,2.11509133,84.669,84.632,1.78691642]
[1771621185734,2.11509133,84.679,84.641,1.79152902]
[1771621186028,2.11509133,84.685,84.651,1.79152902]
[1771621187533,2.11509133,84.685,84.633,41.35502698]
[1771621187534,2.11509133,84.679,84.641,1.79603065]
[1771621187832,2.11509133,84.684,84.651,1.79603065]
[1771621188033,2.11509133,84.694,84.67,11.4927681]
[1771621188235,2.11509133,84.708,84.671,1.7982302]
[1771621188431,2.11509133,84.689,84.65,11.4927681]
[1771621189226,2.11509133,84.689,84.651,1.80040424]
[1771621191026,2.11509133,84.698,84.66,11.4927681]
[1771621191722,2.11509133,84.689,84.659,1.80470838]
[1771621191927,2.11509133,84.689,84.652,11.81306998]
[1771621191928,2.11509133,84.689,84.66,11.4927681]
[1771621192739,2.11509133,84.719,84.672,1.80681439]
[1771621192928,2.11509133,84.709,84.674,1.80681439]
[1771621193118,2.11509133,84.709,84.68,11.4927681]
[1771621193441,2.11509133,84.717,84.681,1.80888701]
[1771621194542,2.11509133,84.717,84.68,11.4927681]
[1771621194543,2.11509133,84.706,84.68,13.30370002]
[1771621195328,2.11509133,84.706,84.636,3.69383402]
[1771621195329,2.11509133,84.689,84.65,11.4927681]
[1771621196144,2.11509133,84.689,84.651,1.8129525]
[1771621196640,11.80804836,84.688,84.653,1.81497092]
[1771621196841,11.80804836,84.688,84.66,11.4927681]
[1771621197232,2.11509133,84.687,84.653,1.81497092]
[1771621197622,2.11509133,84.706,84.653,1.81497092]
[1771621197829,11.80553915,84.706,84.671,1.81696616]
[1771621198226,11.80553915,84.706,84.67,11.4927681]
[1771621198227,2.11509133,84.705,84.67,11.4927681]
[1771621198443,2.11509133,84.699,84.661,1.8189338]
[1771621198739,11.80553915,84.706,84.673,1.8189338]
[1771621198923,2.11509133,84.715,84.673,1.8189338]
[1771621199124,11.4927681,84.71,84.673,1.8189338]
[1771621199424,0.1,84.73,84.68,11.4927681]
[1771621199425,2.11509133,84.718,84.68,11.4927681]
[1771621199634,2.11509133,84.718,84.681,1.8208815]
[1771621199849,2.11509133,84.719,84.69,13.3136496]
[1771621200022,2.11509133,84.719,84.681,1.82279535]
[1771621200218,2.11509133,84.719,84.672,41.33597882]
[1771621200219,11.80241767,84.729,84.69,11.4927681]
[1771621200443,2.11509133,84.719,84.672,11.81027966]
[1771621200741,2.11509133,84.719,84.68,11.4927681]
[1771621201143,2.11509133,84.719,84.673,1.82279535]
[1771621201144,2.11509133,84.709,84.673,1.82279535]